fUST/lending_fUST_20260518
["ID","MTS","AMOUNT","RATE_DAILY","PERIOD"]
[422538371,1779042644000,-151.0,0.00010959,2]
[422538377,1779042644000,-151.0,0.00010959,2]
[422538390,1779042644000,-494.496092,0.00010959,2]
[422538392,1779042644000,-494.496092,0.00010959,2]
[422538403,1779042644000,-494.496092,0.00010959,2]
[422538401,1779042644000,-494.496092,0.00010959,2]
[422538407,1779042644000,-494.496092,0.00010959,2]
[422538409,1779042644000,-494.496092,0.00010959,2]
[422538405,1779042644000,-494.496092,0.00010959,2]
[422538369,1779042644000,-151.0,0.00010959,2]
[422538419,1779042644000,-151.0,0.00010959,2]
[422538415,1779042644000,-151.0,0.00010959,2]
[422538423,1779042644000,-209.962664,0.00010959,2]
[422538425,1779042644000,-494.496092,0.00010959,2]
[422538431,1779042644000,-494.496092,0.00010959,2]
[422538427,1779042644000,-494.496092,0.00010959,2]
[422538432,1779042644000,-494.496092,0.00010959,2]
[422538417,1779042644000,-494.496092,0.00010959,2]
[422538429,1779042644000,-494.496092,0.00010959,2]
[422538421,1779042644000,-494.496092,0.00010959,2]
[422538434,1779042644000,-1712.67911,0.00010959,2]
[422538436,1779042644000,-1712.67911,0.00010959,2]
[422538454,1779042644000,-1712.67911,0.00010959,2]
[422538373,1779042644000,-153.336128,0.00010959,2]
[422538413,1779042644000,-494.496092,0.00010959,2]
[422538375,1779042644000,-151.0,0.00010959,2]
[422538357,1779042644000,-151.0,0.00010959,2]
[422538382,1779042644000,-151.0,0.00010959,2]
[422538322,1779042644000,-151.0,0.00010959,2]
[422538320,1779042644000,-151.0,0.00010959,2]
[422538324,1779042644000,-151.0,0.00010959,2]
[422538328,1779042644000,-151.0,0.00010959,2]
[422538326,1779042644000,-151.0,0.00010959,2]
[422538337,1779042644000,-151.0,0.00010959,2]
[422538336,1779042644000,-151.0,0.00010959,2]
[422538330,1779042644000,-151.0,0.00010959,2]
[422538334,1779042644000,-151.0,0.00010959,2]
[422538339,1779042644000,-151.0,0.00010959,2]
[422538341,1779042644000,-151.0,0.00010959,2]
[422538332,1779042644000,-151.0,0.00010959,2]
[422538343,1779042644000,-151.0,0.00010959,2]
[422538353,1779042644000,-151.0,0.00010959,2]
[422538363,1779042644000,-151.0,0.00010959,2]
[422538359,1779042644000,-151.0,0.00010959,2]
[422538355,1779042644000,-182.137614,0.00010959,2]
[422538361,1779042644000,-151.0,0.00010959,2]
[422538365,1779042644000,-151.0,0.00010959,2]
[422538345,1779042644000,-151.0,0.00010959,2]
[422538347,1779042644000,-151.0,0.00010959,2]
[422538349,1779042644000,-151.0,0.00010959,2]
[422538351,1779042644000,-151.0,0.00010959,2]
[422538344,1779042644000,-151.0,0.00010959,2]
[422538367,1779042644000,-151.0,0.00010959,2]
[422538380,1779042644000,-151.0,0.00010959,2]
[422538384,1779042644000,-151.0,0.00010959,2]
[422538386,1779042644000,-151.0,0.00010959,2]
[422538445,1779042644000,-1712.67911,0.00010959,2]
[422538447,1779042644000,-1712.67911,0.00010959,2]
[422538438,1779042644000,-1712.67911,0.00010959,2]
[422538514,1779042644000,-151.0,0.00010959,2]
[422538510,1779042644000,-151.0,0.00010959,2]
[422538516,1779042644000,-151.0,0.00010959,2]
[422538520,1779042644000,-151.0,0.00010959,2]
[422538518,1779042644000,-274.80604,0.00010959,2]
[422538528,1779042644000,-151.0,0.00010959,2]
[422538522,1779042644000,-151.0,0.00010959,2]
[422538526,1779042644000,-151.0,0.00010959,2]
[422538524,1779042644000,-151.0,0.00010959,2]
[422538530,1779042644000,-151.0,0.00010959,2]
[422538532,1779042644000,-180.812118,0.00010959,2]
[422538538,1779042644000,-336.509833,0.00010959,2]
[422538536,1779042644000,-175.123361,0.00010959,2]
[422538540,1779042644000,-336.509833,0.00010959,2]
[422538564,1779042644000,-500.39136,0.00010959,2]
[422538556,1779042644000,-336.509833,0.00010959,2]
[422538548,1779042644000,-336.509833,0.00010959,2]
[422538544,1779042644000,-336.509833,0.00010959,2]
[422538552,1779042644000,-336.509833,0.00010959,2]
[422538554,1779042644000,-336.509833,0.00010959,2]
[422538558,1779042644000,-336.509833,0.00010959,2]
[422538562,1779042644000,-151.0,0.00010959,2]
[422538546,1779042644000,-336.509833,0.00010959,2]
[422538542,1779042644000,-336.509833,0.00010959,2]
[422538550,1779042644000,-336.509833,0.00010959,2]
[422538560,1779042644000,-336.509833,0.00010959,2]
[422538464,1779042644000,-1712.67911,0.00010959,2]
[422538503,1779042644000,-500.39136,0.00010959,2]
[422538506,1779042644000,-500.39136,0.00010959,2]
[422538534,1779042644000,-151.0,0.00010959,2]
[422538505,1779042644000,-500.39136,0.00010959,2]
[422538456,1779042644000,-1712.67911,0.00010959,2]
[422538508,1779042644000,-151.0,0.00010959,2]
[422538440,1779042644000,-1712.67911,0.00010959,2]
[422538449,1779042644000,-1712.67911,0.00010959,2]
[422538452,1779042644000,-1712.67911,0.00010959,2]
[422538462,1779042644000,-1712.67911,0.00010959,2]
[422538450,1779042644000,-1712.67911,0.00010959,2]
[422538442,1779042644000,-1712.67911,0.00010959,2]
[422538458,1779042644000,-1712.67911,0.00010959,2]
[422538466,1779042644000,-151.0,0.00010959,2]
[422538468,1779042644000,-151.0,0.00010959,2]
[422538476,1779042644000,-500.39136,0.00010959,2]
[422538478,1779042644000,-500.39136,0.00010959,2]
[422538474,1779042644000,-167.501838,0.00010959,2]
[422538460,1779042644000,-1712.67911,0.00010959,2]
[422538494,1779042644000,-500.39136,0.00010959,2]
[422538481,1779042644000,-500.39136,0.00010959,2]
[422538472,1779042644000,-151.0,0.00010959,2]
[422538480,1779042644000,-500.39136,0.00010959,2]
[422538470,1779042644000,-151.0,0.00010959,2]
[422538485,1779042644000,-500.39136,0.00010959,2]
[422538489,1779042644000,-500.39136,0.00010959,2]
[422538487,1779042644000,-500.39136,0.00010959,2]
[422538492,1779042644000,-500.39136,0.00010959,2]
[422538497,1779042644000,-500.39136,0.00010959,2]
[422538499,1779042644000,-500.39136,0.00010959,2]
[422538483,1779042644000,-500.39136,0.00010959,2]
[422538512,1779042644000,-151.0,0.00010959,2]
[422538501,1779042644000,-500.39136,0.00010959,2]
[422538643,1779042645000,-800.0,0.00011182,2]
[422538647,1779042645000,-800.0,0.00011191,2]
[422538619,1779042645000,-456.5367176,0.00011125,2]
[422538652,1779042645000,-800.0,0.00011212,2]
[422538639,1779042645000,-803.51192482,0.00011163,2]
[422538664,1779042645000,-500.0,0.00011232,2]
[422538623,1779042645000,-151.0,0.00011128,2]
[422538645,1779042645000,-800.0,0.00011191,2]
[422538637,1779042645000,-461.22630683,0.00011156,7]
[422538621,1779042645000,-454.3668221,0.00011128,2]
[422538617,1779042645000,-800.0,0.00011117,2]
[422538658,1779042645000,-500.0,0.00011232,2]
[422538648,1779042645000,-800.0,0.00011209,2]
[422538654,1779042645000,-800.0,0.0001122,2]
[422538686,1779042645000,-500.0,0.00011232,2]
[422538662,1779042645000,-500.0,0.00011232,2]
[422538660,1779042645000,-500.0,0.00011232,2]
[422538641,1779042645000,-800.0,0.00011165,2]
[422538656,1779042645000,-7705.8699,0.00011232,2]
[422538666,1779042645000,-500.0,0.00011232,2]
[422538668,1779042645000,-481.36181751,0.00011232,2]
[422538676,1779042645000,-500.0,0.00011232,2]
[422538670,1779042645000,-500.0,0.00011232,2]
[422538678,1779042645000,-500.0,0.00011232,2]
[422538682,1779042645000,-500.0,0.00011232,2]
[422538680,1779042645000,-630.84,0.00011232,2]
[422538684,1779042645000,-669.19,0.00011232,2]
[422538688,1779042645000,-500.0,0.00011232,2]
[422538627,1779042645000,-160.0,0.00011139,2]
[422538650,1779042645000,-800.0,0.00011212,2]
[422538631,1779042645000,-2579.500159,0.00011139,2]
[422538572,1779042645000,-151.0,0.00010959,2]
[422538635,1779042645000,-874.67135637,0.00011156,7]
[422538568,1779042645000,-500.39136,0.00010959,2]
[422538566,1779042645000,-500.39136,0.00010959,2]
[422538584,1779042645000,-151.0,0.00011,2]
[422538573,1779042645000,-151.0,0.00010959,2]
[422538578,1779042645000,-336.509833,0.00010959,2]
[422538586,1779042645000,-151.0,0.00011,2]
[422538576,1779042645000,-336.509833,0.00010959,2]
[422538580,1779042645000,-151.0,0.00011,2]
[422538574,1779042645000,-151.0,0.00010959,2]
[422538575,1779042645000,-336.509833,0.00010959,2]
[422538570,1779042645000,-500.39136,0.00010959,2]
[422538690,1779042645000,-500.0,0.00011232,2]
[422538591,1779042645000,-494.496092,0.00011,2]
[422538589,1779042645000,-494.496092,0.00011,2]
[422538603,1779042645000,-920.2282987,0.00011041,2]
[422538597,1779042645000,-151.0,0.00011,2]
[422538595,1779042645000,-494.49609,0.00011,2]
[422538593,1779042645000,-494.496092,0.00011,2]
[422538588,1779042645000,-151.0,0.00011,2]
[422538609,1779042645000,-2093.364205,0.00011084,2]
[422538601,1779042645000,-1422.9435275,0.00011041,2]
[422538599,1779042645000,-152.0,0.00011004,30]
[422538605,1779042645000,-160.0,0.00011084,2]
[422538607,1779042645000,-1126.682102,0.00011084,2]
[422538611,1779042645000,-800.0,0.00011103,2]
[422538629,1779042645000,-1369.750079,0.00011139,2]
[422538633,1779042645000,-800.0,0.00011155,2]
[422538625,1779042645000,-800.0,0.00011128,2]
[422538613,1779042645000,-800.0,0.00011108,2]
[422538615,1779042645000,-800.0,0.00011117,2]
[422538672,1779042645000,-786.73,0.00011232,2]
[422538582,1779042645000,-151.0,0.00011,2]
[422538696,1779042645000,-500.0,0.00011232,2]
[422538766,1779042645000,-500.0,0.00011232,2]
[422538750,1779042645000,-500.0,0.00011232,2]
[422538746,1779042645000,-500.0,0.00011232,2]
[422538764,1779042645000,-500.0,0.00011232,2]
[422538748,1779042645000,-571.70557086,0.00011232,2]
[422538768,1779042645000,-500.0,0.00011232,2]
[422538782,1779042645000,-500.0,0.00011232,2]
[422538770,1779042645000,-500.0,0.00011232,2]
[422538790,1779042645000,-500.0,0.00011232,2]
[422538794,1779042645000,-639.24075921,0.00011232,2]
[422538784,1779042645000,-500.0,0.00011232,2]
[422538772,1779042645000,-500.0,0.00011232,2]
[422538786,1779042645000,-500.0,0.00011232,2]
[422538788,1779042645000,-779.43,0.00011232,2]
[422538752,1779042645000,-500.0,0.00011232,2]
[422538792,1779042645000,-500.0,0.00011232,2]
[422538780,1779042645000,-619.27,0.00011232,2]
[422538774,1779042645000,-550.31,0.00011232,2]
[422538776,1779042645000,-574.89,0.00011232,2]
[422538801,1779042645000,-151.0,0.00011232,2]
[422538797,1779042645000,-500.0,0.00011232,2]
[422538807,1779042645000,-1115.76,0.00011232,2]
[422538810,1779042645000,-500.0,0.00011232,2]
[422538805,1779042645000,-151.0,0.00011232,2]
[422538799,1779042645000,-500.0,0.00011232,2]
[422538795,1779042645000,-500.0,0.00011232,2]
[422538808,1779042645000,-151.0,0.00011232,2]
[422538803,1779042645000,-1486.37,0.00011232,2]
[422538812,1779042645000,-195.993515,0.00011232,2]
[422538674,1779042645000,-500.0,0.00011232,2]
[422538778,1779042645000,-500.0,0.00011232,2]
[422538762,1779042645000,-1880.54,0.00011232,2]
[422538577,1779042645000,-336.509833,0.00010959,2]
[422538758,1779042645000,-500.0,0.00011232,2]
[422538760,1779042645000,-500.0,0.00011232,2]
[422538694,1779042645000,-500.0,0.00011232,2]
[422538702,1779042645000,-500.0,0.00011232,2]
[422538700,1779042645000,-500.0,0.00011232,2]
[422538704,1779042645000,-500.0,0.00011232,2]
[422538713,1779042645000,-500.0,0.00011232,2]
[422538711,1779042645000,-500.0,0.00011232,2]
[422538707,1779042645000,-500.0,0.00011232,2]
[422538705,1779042645000,-500.0,0.00011232,2]
[422538709,1779042645000,-757.77,0.00011232,2]
[422538716,1779042645000,-500.0,0.00011232,2]
[422538715,1779042645000,-500.0,0.00011232,2]
[422538735,1779042645000,-1557.13,0.00011232,2]
[422538692,1779042645000,-500.0,0.00011232,2]
[422538729,1779042645000,-339.77015429,0.00011232,2]
[422538698,1779042645000,-500.0,0.00011232,2]
[422538731,1779042645000,-500.0,0.00011232,2]
[422538736,1779042645000,-500.0,0.00011232,2]
[422538754,1779042645000,-589.55252234,0.00011232,2]
[422538744,1779042645000,-500.0,0.00011232,2]
[422538738,1779042645000,-928.72,0.00011232,2]
[422538720,1779042645000,-620.68,0.00011232,2]
[422538722,1779042645000,-662.91,0.00011232,2]
[422538756,1779042645000,-500.0,0.00011232,2]
[422538740,1779042645000,-650.32,0.00011232,2]
[422538726,1779042645000,-500.0,0.00011232,2]
[422538718,1779042645000,-807.15,0.00011232,2]
[422538742,1779042645000,-500.0,0.00011232,2]
[422538724,1779042645000,-561.49,0.00011232,2]
[422538733,1779042645000,-500.0,0.00011232,2]
[422538728,1779042645000,-525.84,0.00011232,2]
[422538911,1779042646000,-151.0,0.00011232,2]
[422538909,1779042646000,-151.0,0.00011232,2]
[422538888,1779042646000,-541.47,0.00011232,2]
[422538890,1779042646000,-500.0,0.00011232,2]
[422538892,1779042646000,-500.0,0.00011232,2]
[422538896,1779042646000,-151.0,0.00011232,2]
[422538884,1779042646000,-752.52,0.00011232,2]
[422538894,1779042646000,-151.0,0.00011232,2]
[422538882,1779042646000,-500.0,0.00011232,2]
[422538879,1779042646000,-151.0,0.00011232,2]
[422538913,1779042646000,-500.0,0.00011232,2]
[422538881,1779042646000,-151.0,0.00011232,2]
[422538886,1779042646000,-500.0,0.00011232,2]
[422538917,1779042646000,-151.0,0.00011232,2]
[422538921,1779042646000,-500.0,0.00011232,2]
[422538905,1779042646000,-269.5607576,0.00011232,2]
[422538915,1779042646000,-504.90337874,0.00011232,2]
[422538903,1779042646000,-151.0,0.00011232,2]
[422538919,1779042646000,-500.0,0.00011232,2]
[422538932,1779042646000,-500.0,0.00011232,2]
[422538923,1779042646000,-500.0,0.00011232,2]
[422538941,1779042646000,-202.50605818,0.00011232,2]
[422538928,1779042646000,-500.0,0.00011232,2]
[422538925,1779042646000,-500.0,0.00011232,2]
[422538927,1779042646000,-500.0,0.00011232,2]
[422538940,1779042646000,-593.61,0.00011232,2]
[422538938,1779042646000,-914.46,0.00011232,2]
[422538877,1779042646000,-500.0,0.00011232,2]
[422538901,1779042646000,-151.0,0.00011232,2]
[422538875,1779042646000,-573.83,0.00011232,2]
[422538845,1779042646000,-232.14175646,0.00011232,2]
[422538869,1779042646000,-500.0,0.00011232,2]
[422538821,1779042646000,-2556.3,0.00011232,2]
[422538817,1779042646000,-500.0,0.00011232,2]
[422538819,1779042646000,-704.38,0.00011232,2]
[422538815,1779042646000,-500.0,0.00011232,2]
[422538823,1779042646000,-926.37,0.00011232,2]
[422538835,1779042646000,-200.43740135,0.00011232,2]
[422538833,1779042646000,-500.0,0.00011232,2]
[422538837,1779042646000,-460.33189453,0.00011232,2]
[422538829,1779042646000,-151.0,0.00011232,2]
[422538825,1779042646000,-151.0,0.00011232,2]
[422538831,1779042646000,-500.0,0.00011232,2]
[422538827,1779042646000,-721.64,0.00011232,2]
[422538838,1779042646000,-503.86000507,0.00011232,2]
[422538873,1779042646000,-500.0,0.00011232,2]
[422538841,1779042646000,-2130.5,0.00011232,2]
[422538843,1779042646000,-500.0,0.00011232,2]
[422538847,1779042646000,-503.95502753,0.00011232,2]
[422538863,1779042646000,-178.267,0.00011232,2]
[422538849,1779042646000,-500.0,0.00011232,2]
[422538851,1779042646000,-500.0,0.00011232,2]
[422538865,1779042646000,-610.0,0.00011232,2]
[422538861,1779042646000,-504.06491954,0.00011232,2]
[422538853,1779042646000,-603.13,0.00011232,2]
[422538859,1779042646000,-500.0,0.00011232,2]
[422538867,1779042646000,-500.0,0.00011232,2]
[422538855,1779042646000,-815.97,0.00011232,2]
[422538857,1779042646000,-500.0,0.00011232,2]
[422538871,1779042646000,-593.13,0.00011232,2]
[422538936,1779042646000,-500.0,0.00011232,2]
[422538934,1779042646000,-610.6,0.00011232,2]
[422538907,1779042646000,-500.0,0.00011232,2]
[422538943,1779042646000,-500.0,0.00011232,2]
[422539015,1779042646000,-500.0,0.00011232,2]
[422538999,1779042646000,-500.0,0.00011232,2]
[422539002,1779042646000,-500.0,0.00011232,2]
[422539004,1779042646000,-500.0,0.00011232,2]
[422539005,1779042646000,-526.02,0.00011232,2]
[422539007,1779042646000,-500.0,0.00011232,2]
[422539019,1779042646000,-360.92209893,0.00011232,2]
[422539017,1779042646000,-714.18,0.00011232,2]
[422539021,1779042646000,-649.39,0.00011232,2]
[422539023,1779042646000,-500.0,0.00011232,2]
[422539034,1779042646000,-500.0,0.00011232,2]
[422539036,1779042646000,-761.95,0.00011232,2]
[422539040,1779042646000,-5397.15,0.00011232,2]
[422539038,1779042646000,-1070.98,0.00011232,2]
[422539024,1779042646000,-500.0,0.00011232,2]
[422539026,1779042646000,-1363.65,0.00011232,2]
[422539032,1779042646000,-500.0,0.00011232,2]
[422539030,1779042646000,-777.64,0.00011232,2]
[422539028,1779042646000,-500.0,0.00011232,2]
[422539042,1779042646000,-500.0,0.00011232,2]
[422539044,1779042646000,-488.09839267,0.00011232,2]
[422539046,1779042646000,-500.0,0.00011232,2]
[422539048,1779042646000,-500.0,0.00011232,2]
[422539059,1779042646000,-960.56,0.00011232,2]
[422539055,1779042646000,-500.0,0.00011232,2]
[422538930,1779042646000,-500.0,0.00011232,2]
[422539052,1779042646000,-500.0,0.00011232,2]
[422539053,1779042646000,-5475.47,0.00011232,2]
[422539057,1779042646000,-500.0,0.00011232,2]
[422539013,1779042646000,-731.57,0.00011232,2]
[422539011,1779042646000,-500.0,0.00011232,2]
[422539050,1779042646000,-689.52,0.00011232,2]
[422539009,1779042646000,-500.0,0.00011232,2]
[422538997,1779042646000,-500.0,0.00011232,2]
[422538945,1779042646000,-1007.19,0.00011232,2]
[422538951,1779042646000,-500.0,0.00011232,2]
[422538949,1779042646000,-500.0,0.00011232,2]
[422538962,1779042646000,-500.0,0.00011232,2]
[422538955,1779042646000,-1725.2,0.00011232,2]
[422538959,1779042646000,-849.12,0.00011232,2]
[422538961,1779042646000,-3648.92,0.00011232,2]
[422538957,1779042646000,-500.0,0.00011232,2]
[422538953,1779042646000,-500.0,0.00011232,2]
[422538966,1779042646000,-500.0,0.00011232,2]
[422538965,1779042646000,-500.0,0.00011232,2]
[422538968,1779042646000,-500.0,0.00011232,2]
[422538970,1779042646000,-2535.9,0.00011232,2]
[422538947,1779042646000,-677.63,0.00011232,2]
[422538984,1779042646000,-582.29,0.00011232,2]
[422538972,1779042646000,-1931.9,0.00011232,2]
[422538993,1779042646000,-500.0,0.00011232,2]
[422538991,1779042646000,-546.58046399,0.00011232,2]
[422538975,1779042646000,-549.21240827,0.00011232,2]
[422538982,1779042646000,-500.0,0.00011232,2]
[422538990,1779042646000,-2867.48,0.00011232,2]
[422538995,1779042646000,-619.86,0.00011232,2]
[422538974,1779042646000,-1348.42,0.00011232,2]
[422538980,1779042646000,-694.7,0.00011232,2]
[422538976,1779042646000,-500.0,0.00011232,2]
[422538986,1779042646000,-500.0,0.00011232,2]
[422538988,1779042646000,-500.0,0.00011232,2]
[422538978,1779042646000,-500.0,0.00011232,2]
[422539141,1779042647000,-2089.41,0.00011232,2]
[422539131,1779042647000,-500.0,0.00011232,2]
[422539133,1779042647000,-838.62,0.00011232,2]
[422539125,1779042647000,-500.0,0.00011232,2]
[422539127,1779042647000,-528.31,0.00011232,2]
[422539137,1779042647000,-500.0,0.00011232,2]
[422539129,1779042647000,-799.06,0.00011232,2]
[422539119,1779042647000,-1070.91,0.00011232,2]
[422539135,1779042647000,-500.0,0.00011232,2]
[422539103,1779042647000,-712.83,0.00011232,2]
[422539139,1779042647000,-500.0,0.00011232,2]
[422539121,1779042647000,-424.25868882,0.00011232,2]
[422539157,1779042647000,-500.0,0.00011232,2]
[422539147,1779042647000,-500.0,0.00011232,2]
[422539149,1779042647000,-500.0,0.00011232,2]
[422539145,1779042647000,-692.42,0.00011232,2]
[422539155,1779042647000,-500.0,0.00011232,2]
[422539151,1779042647000,-676.75,0.00011232,2]
[422539165,1779042647000,-1140.32,0.00011232,2]
[422539163,1779042647000,-963.64,0.00011232,2]
[422539159,1779042647000,-1574.37,0.00011232,2]
[422539161,1779042647000,-577.58556386,0.00011232,2]
[422539153,1779042647000,-673.73,0.00011232,2]
[422539105,1779042647000,-500.0,0.00011232,2]
[422539179,1779042647000,-500.0,0.00011232,2]
[422539143,1779042647000,-924.14,0.00011232,2]
[422539117,1779042647000,-500.0,0.00011232,2]
[422539090,1779042647000,-731.59,0.00011232,2]
[422539115,1779042647000,-807.24,0.00011232,2]
[422539177,1779042647000,-500.0,0.00011232,2]
[422539061,1779042647000,-415.9428506,0.00011232,2]
[422539065,1779042647000,-647.98716958,0.00011232,2]
[422539063,1779042647000,-500.0,0.00011232,2]
[422539067,1779042647000,-733.32,0.00011232,2]
[422539071,1779042647000,-962.93,0.00011232,2]
[422539069,1779042647000,-580.48,0.00011232,2]
[422539085,1779042647000,-500.0,0.00011232,2]
[422539087,1779042647000,-2608.85,0.00011232,2]
[422539077,1779042647000,-701.94,0.00011232,2]
[422539076,1779042647000,-582.86,0.00011232,2]
[422539079,1779042647000,-1429.88,0.00011232,2]
[422539073,1779042647000,-500.0,0.00011232,2]
[422539092,1779042647000,-500.0,0.00011232,2]
[422539081,1779042647000,-614.72440445,0.00011232,2]
[422539083,1779042647000,-742.35,0.00011232,2]
[422539093,1779042647000,-360.46590351,0.00011232,2]
[422539097,1779042647000,-500.0,0.00011232,2]
[422539095,1779042647000,-500.0,0.00011232,2]
[422539107,1779042647000,-198.55285429,0.00011232,2]
[422539109,1779042647000,-500.0,0.00011232,2]
[422539111,1779042647000,-500.0,0.00011232,2]
[422539099,1779042647000,-2225.31,0.00011232,2]
[422539113,1779042647000,-500.0,0.00011232,2]
[422539123,1779042647000,-854.41,0.00011232,2]
[422539101,1779042647000,-1000.0,0.00011232,2]
[422539181,1779042647000,-5051.23,0.00011232,2]
[422539275,1779042647000,-500.0,0.00011232,2]
[422539180,1779042647000,-3012.69,0.00011232,2]
[422539235,1779042647000,-500.0,0.00011232,2]
[422539243,1779042647000,-500.0,0.00011232,2]
[422539233,1779042647000,-4993.46,0.00011232,2]
[422539247,1779042647000,-542.72,0.00011232,2]
[422539241,1779042647000,-660.68,0.00011232,2]
[422539253,1779042647000,-500.0,0.00011232,2]
[422539245,1779042647000,-686.11,0.00011232,2]
[422539237,1779042647000,-500.0,0.00011232,2]
[422539249,1779042647000,-500.0,0.00011232,2]
[422539269,1779042647000,-1547.83,0.00011232,2]
[422539265,1779042647000,-608.56,0.00011232,2]
[422539255,1779042647000,-500.0,0.00011232,2]
[422539273,1779042647000,-500.0,0.00011232,2]
[422539267,1779042647000,-500.0,0.00011232,2]
[422539263,1779042647000,-500.0,0.00011232,2]
[422539259,1779042647000,-500.0,0.00011232,2]
[422539261,1779042647000,-500.0,0.00011232,2]
[422539257,1779042647000,-500.0,0.00011232,2]
[422539277,1779042647000,-500.0,0.00011232,2]
[422539279,1779042647000,-500.56123672,0.00011232,2]
[422539281,1779042647000,-500.0,0.00011232,2]
[422539283,1779042647000,-808.55,0.00011232,2]
[422539287,1779042647000,-500.0,0.00011232,2]
[422539285,1779042647000,-500.0,0.00011232,2]
[422539178,1779042647000,-500.0,0.00011232,2]
[422539231,1779042647000,-1712.679118,0.00011232,2]
[422539229,1779042647000,-621.77,0.00011232,2]
[422539271,1779042647000,-500.0,0.00011232,2]
[422539251,1779042647000,-500.0,0.00011232,2]
[422539189,1779042647000,-500.0,0.00011232,2]
[422539239,1779042647000,-500.0,0.00011232,2]
[422539197,1779042647000,-500.0,0.00011232,2]
[422539183,1779042647000,-520.18,0.00011232,2]
[422539187,1779042647000,-758.31,0.00011232,2]
[422539201,1779042647000,-2194.81,0.00011232,2]
[422539185,1779042647000,-500.0,0.00011232,2]
[422539191,1779042647000,-500.0,0.00011232,2]
[422539195,1779042647000,-500.0,0.00011232,2]
[422539193,1779042647000,-739.92,0.00011232,2]
[422539184,1779042647000,-500.0,0.00011232,2]
[422539182,1779042647000,-500.0,0.00011232,2]
[422539199,1779042647000,-632.93,0.00011232,2]
[422539217,1779042647000,-669.32,0.00011232,2]
[422539205,1779042647000,-2337.43,0.00011232,2]
[422539207,1779042647000,-500.0,0.00011232,2]
[422539215,1779042647000,-500.0,0.00011232,2]
[422539211,1779042647000,-500.0,0.00011232,2]
[422539219,1779042647000,-1712.67911,0.00011232,2]
[422539209,1779042647000,-500.0,0.00011232,2]
[422539227,1779042647000,-249.39441501,0.00011232,2]
[422539213,1779042647000,-721.78,0.00011232,2]
[422539223,1779042647000,-1712.67911,0.00011232,2]
[422539221,1779042647000,-1712.67911,0.00011232,2]
[422539203,1779042647000,-500.0,0.00011232,2]
[422539225,1779042647000,-574.6,0.00011232,2]
[422539373,1779042648000,-5145.29,0.00011232,2]
[422539379,1779042648000,-500.0,0.00011232,2]
[422539347,1779042648000,-502.5,0.00011232,2]
[422539367,1779042648000,-158.68190832,0.00011232,2]
[422539377,1779042648000,-500.0,0.00011232,2]
[422539362,1779042648000,-500.0,0.00011232,2]
[422539371,1779042648000,-764.18,0.00011232,2]
[422539363,1779042648000,-500.0,0.00011232,2]
[422539357,1779042648000,-500.0,0.00011232,2]
[422539359,1779042648000,-570.59,0.00011232,2]
[422539376,1779042648000,-500.0,0.00011232,2]